[Event "Czech Open Rapid G1 2024"]
[Site "Pardubice"]
[Date "2024.07.18"]
[Round "8.24"]
[White "Direk, Oguzhan"]
[Black "Kastner, Oldrich"]
[Result "0-1"]
[Annotator "RC"]
[ECO "D00"]
[WhiteElo "1753"]
[BlackElo "2004"]
[PlyCount "104"]
[EventDate "2024.07.16"]
[EventType "swiss"]
[EventCountry "CZE"]
[SourceTitle "playchess.com"]
[Source "ChessBase"]
[SourceQuality "1"]
[TimeControl "1200+10"]

1. d4 {[%emt 0:00:03]} Nf6 {[%emt 0:00:01]} 2. Nc3 {[%emt 0:00:01]} d5 {[%emt 0:00:07]} 3. Bf4 {[%emt 0:00:02]} a6 {[%emt 0:00:07]} 4. e3 {[%emt 0:00:02]} Bf5 {[%emt 0:00:19]} 5. f3 {[%emt 0:00:02]} e6 {[%emt 0:00:06]} 6. g4 {[%emt 0:00:02]} Bg6 {[%emt 0:00:08]} 7. h4 {[%emt 0:00:02]} h6 {[%emt 0:00:06]} 8. Bd3 {[%emt 0:00:02]} Bxd3 {[%emt 0:00:12]} 9. cxd3 {[%emt 0:00:02]} Bd6 {[%emt 0:00:34]} 10. Nge2 {[%emt 0:00:02]} Nc6 {[%emt 0:00:57]} 11. Kf2 {[%emt 0:00:21]} e5 {[%emt 0:00:24]} 12. dxe5 {[%emt 0:00:14]} Nxe5 {[%emt 0:00:14]} 13. d4 {[%emt 0:01:23]} Ng6 {[%emt 0:02:42]} 14. Bxd6 {[%emt 0:00:54]} Qxd6 {[%emt 0:00:08]} 15. h5 {[%emt 0:00:45]} Nf8 {[%emt 0:00:59]} 16. Qb3 {[%emt 0:00:29]} Ne6 {[%emt 0:01:55]} 17. Rag1 {[%emt 0:00:58]} O-O {[%emt 0:01:01]} 18. Qc2 {[%emt 0:00:08]} c5 {[%emt 0:00:32]} 19. Qd3 {[%emt 0:02:26]} Ng5 {[%emt 0:01:22]} 20. Ng3 {[%emt 0:01:23]} Rfe8 {[%emt 0:00:54]} 21. Nf5 {[%emt 0:00:11]} Qb6 {[%emt 0:00:15]} 22. Na4 {[%emt 0:00:29]} Qb4 {[%emt 0:00:32]} 23. Nxc5 {[%emt 0:00:19]} Qxb2+ {[%emt 0:00:06]} 24. Qe2 {[%emt 0:00:32]} Qxe2+ {[%emt 0:01:04]} 25. Kxe2 {[%emt 0:00:02]} b6 {[%emt 0:00:38]} 26. Na4 {[%emt 0:00:36]} Rab8 {[%emt 0:01:17]} 27. Rc1 {[%emt 0:00:18]} Ne6 {[%emt 0:00:05]} 28. Kd3 {[%emt 0:01:06]} Kf8 {[%emt 0:00:42]} 29. Rc6 {[%emt 0:00:30]} Nd7 {[%emt 0:01:58]} 30. Nc3 {[%emt 0:02:16]} Nf6 {[%emt 0:00:36]} 31. Rb1 {[%emt 0:00:05]} b5 {[%emt 0:00:34]} 32. Rxa6 {[%emt 0:01:14]} b4 {[%emt 0:00:03]} 33. Ne2 {[%emt 0:00:36]} g6 {[%emt 0:00:41]} 34. hxg6 {[%emt 0:01:22]} fxg6 {[%emt 0:00:02]} 35. Rxe6 {[%emt 0:00:54]} Rxe6 {[%emt 0:00:27]} 36. Nf4 {[%emt 0:00:02]} Ra6 {[%emt 0:00:44]} 37. Nxg6+ {[%emt 0:00:42]} Ke8 {[%emt 0:00:08]} 38. Ne5 {[%emt 0:00:31]} Rxa2 {[%emt 0:00:33]} 39. Nc6 {[%emt 0:00:17]} Rba8 {[%emt 0:00:45]} 40. Rb3 {[%emt 0:01:20]} Rf2 {[%emt 0:01:47]} 41. Nxb4 {[%emt 0:00:13]} Ra1 {[%emt 0:00:07]} 42. Nc2 {[%emt 0:01:24]} Rd1+ {[%emt 0:00:17]} 43. Kc3 {[%emt 0:00:02]} Rc1 {[%emt 0:00:19]} 44. Rb2 {[%emt 0:00:10]} Rxf3 {[%emt 0:00:15]} 45. Nxh6 {[%emt 0:00:29]} Ne4+ {[%emt 0:00:27]} 46. Kb3 {[%emt 0:00:32]} Nd2+ {[%emt 0:00:03]} 47. Ka2 {[%emt 0:00:13]} Nc4 {[%emt 0:00:04]} 48. Rb8+ {[%emt 0:00:33]} Kd7 {[%emt 0:00:01]} 49. Nb4 {[%emt 0:00:20]} Rf2+ {[%emt 0:00:01]} 50. Kb3 {[%emt 0:00:09]} Rb2+ {[%emt 0:00:38]} 51. Ka4 {[%emt 0:00:01]} Ra1+ {[%emt 0:00:02]} 52. Kb5 {[%emt 0:00:01]} Ra5# {[%emt 0:00:05]} 0-1

[Event "Czech Open Rapid G1 2024"]
[Site "Pardubice"]
[Date "2024.07.18"]
[Round "8.25"]
[White "Brendel, Oliver"]
[Black "Moeller, Tom"]
[Result "1-0"]
[Annotator "RC"]
[ECO "A25"]
[WhiteElo "2291"]
[BlackElo "1842"]
[PlyCount "69"]
[EventDate "2024.07.16"]
[EventType "swiss"]
[EventCountry "CZE"]
[SourceTitle "playchess.com"]
[Source "ChessBase"]
[SourceQuality "1"]
[TimeControl "1200+10"]

1. c4 {[%emt 0:00:02]} e5 {[%emt 0:00:01]} 2. g3 {[%emt 0:00:03]} Bc5 {[%emt 0:00:06]} 3. Bg2 {[%emt 0:00:08]} Nc6 {[%emt 0:00:01]} 4. Nc3 {[%emt 0:00:07]} a6 {[%emt 0:00:06]} 5. e3 {[%emt 0:00:16]} d6 {[%emt 0:00:14]} 6. Nge2 {[%emt 0:00:04]} Bd7 {[%emt 0:00:18]} 7. O-O {[%emt 0:00:16]} h5 {[%emt 0:00:03]} 8. d4 {[%emt 0:00:07]} Ba7 {[%emt 0:00:06]} 9. h3 {[%emt 0:01:58]} Qc8 {[%emt 0:00:37]} 10. Kh2 {[%emt 0:01:29]} h4 {[%emt 0:00:31]} 11. g4 {[%emt 0:00:04]} f5 {[%emt 0:00:58]} 12. g5 {[%emt 0:01:19]} Nge7 {[%emt 0:01:45]} 13. d5 {[%emt 0:01:11]} Nd8 {[%emt 0:00:21]} 14. f4 {[%emt 0:00:02]} Nf7 {[%emt 0:01:15]} 15. b4 {[%emt 0:00:42]} Ng6 {[%emt 0:02:23]} 16. Qd2 {[%emt 0:00:13]} O-O {[%emt 0:00:39]} 17. Bb2 {[%emt 0:00:22]} Qe8 {[%emt 0:00:24]} 18. Rae1 {[%emt 0:01:47]} Qe7 {[%emt 0:01:08]} 19. Ng1 {[%emt 0:00:20]} Rae8 {[%emt 0:00:18]} 20. Qd1 {[%emt 0:01:26]} exf4 {[%emt 0:03:27]} 21. exf4 {[%emt 0:00:08]} Qd8 {[%emt 0:00:03]} 22. Bc1 {[%emt 0:00:47]} Rxe1 {[%emt 0:01:02]} 23. Rxe1 {[%emt 0:00:34]} Bf2 {[%emt 0:00:13]} 24. Rf1 {[%emt 0:00:42]} Bg3+ {[%emt 0:00:13]} 25. Kh1 {[%emt 0:00:01]} Re8 {[%emt 0:00:01]} 26. Nge2 {[%emt 0:01:58]} Qe7 {[%emt 0:01:31]} 27. Bd2 {[%emt 0:01:05]} Nfh8 {[%emt 0:01:37]} 28. Bf3 {[%emt 0:00:45]} Kh7 {[%emt 0:01:00]} 29. Kg2 {[%emt 0:00:14]} Qf8 {[%emt 0:01:32]} 30. Nxg3 {[%emt 0:00:18]} hxg3 {[%emt 0:00:02]} 31. Kxg3 {[%emt 0:00:05]} Nf7 {[%emt 0:00:20]} 32. h4 {[%emt 0:00:11]} Qh8 {[%emt 0:00:17]} 33. h5 {[%emt 0:00:24]} Nxg5 {[%emt 0:00:20]} 34. hxg6+ {[%emt 0:00:35]} Kg8 {[%emt 0:00:32]} 35. Rh1 {[%emt 0:00:18]} 1-0

[Event "Czech Open Rapid G1 2024"]
[Site "Pardubice"]
[Date "2024.07.18"]
[Round "8.26"]
[White "Laith, Kasib"]
[Black "Krak, Tomas"]
[Result "0-1"]
[Annotator "RC"]
[ECO "C00"]
[WhiteElo "2075"]
[BlackElo "2229"]
[PlyCount "89"]
[EventDate "2024.07.16"]
[EventType "swiss"]
[EventCountry "CZE"]
[SourceTitle "playchess.com"]
[Source "ChessBase"]
[SourceQuality "1"]
[TimeControl "1200+10"]

1. e4 {[%emt 0:00:45]} e6 {[%emt 0:00:02]} 2. d3 {[%emt 0:00:14]} c5 {[%emt 0:00:06]} 3. Nf3 {[%emt 0:00:05]} Nc6 {[%emt 0:00:01]} 4. g3 {[%emt 0:00:03]} d5 {[%emt 0:00:17]} 5. Nbd2 {[%emt 0:00:03]} Nf6 {[%emt 0:00:02]} 6. Bg2 {[%emt 0:00:16]} Be7 {[%emt 0:00:02]} 7. O-O {[%emt 0:00:06]} O-O {[%emt 0:00:02]} 8. Re1 {[%emt 0:00:07]} b5 {[%emt 0:00:04]} 9. e5 {[%emt 0:00:05]} Ne8 {[%emt 0:00:02]} 10. Nf1 {[%emt 0:00:08]} Nc7 {[%emt 0:00:14]} 11. h4 {[%emt 0:01:08]} b4 {[%emt 0:00:01]} 12. N1h2 {[%emt 0:00:04]} Nb5 {[%emt 0:00:02]} 13. h5 {[%emt 0:01:25]} h6 {[%emt 0:00:06]} 14. Bf4 {[%emt 0:01:41]} Nbd4 {[%emt 0:00:08]} 15. Qd2 {[%emt 0:01:44]} Nxf3+ {[%emt 0:00:20]} 16. Nxf3 {[%emt 0:00:07]} Nd4 {[%emt 0:00:20]} 17. c3 {[%emt 0:01:31]} bxc3 {[%emt 0:00:26]} 18. bxc3 {[%emt 0:00:03]} Nf5 {[%emt 0:00:30]} 19. d4 {[%emt 0:03:20]} Ba6 {[%emt 0:00:55]} 20. Kh1 {[%emt 0:02:39]} Rb8 {[%emt 0:00:38]} 21. Rab1 {[%emt 0:00:39]} Qa5 {[%emt 0:01:06]} 22. g4 {[%emt 0:01:02]} Nh4 {[%emt 0:00:22]} 23. Nxh4 {[%emt 0:01:17]} Bxh4 {[%emt 0:00:02]} 24. g5 {[%emt 0:00:26]} Rxb1 {[%emt 0:01:54]} 25. Rxb1 {[%emt 0:00:01]} hxg5 {[%emt 0:02:09]} 26. Bxg5 {[%emt 0:00:06]} Bxg5 {[%emt 0:01:06]} 27. Qxg5 {[%emt 0:00:03]} Qd8 {[%emt 0:00:11]} 28. Qg3 {[%emt 0:00:24]} f5 {[%emt 0:01:26]} 29. f4 {[%emt 0:01:20]} Qe8 {[%emt 0:00:34]} 30. Bf3 {[%emt 0:00:20]} cxd4 {[%emt 0:00:26]} 31. cxd4 {[%emt 0:00:01]} Bd3 {[%emt 0:00:10]} 32. Rb7 {[%emt 0:00:45]} Rf7 {[%emt 0:00:20]} 33. Rb2 {[%emt 0:00:39]} Rc7 {[%emt 0:00:19]} 34. Rg2 {[%emt 0:01:21]} Be4 {[%emt 0:00:28]} 35. h6 {[%emt 0:00:26]} Bxf3 {[%emt 0:00:47]} 36. Qxf3 {[%emt 0:00:03]} g6 {[%emt 0:00:19]} 37. Qg3 {[%emt 0:00:23]} Kh7 {[%emt 0:01:28]} 38. Qg5 {[%emt 0:00:18]} Qf7 {[%emt 0:00:58]} 39. Kh2 {[%emt 0:00:21]} a5 {[%emt 0:00:37]} 40. Kg1 {[%emt 0:00:24]} a4 {[%emt 0:00:08]} 41. a3 {[%emt 0:00:39]} Rc3 {[%emt 0:00:31]} 42. Rb2 {[%emt 0:00:23]} Qa7 {[%emt 0:00:18]} 43. Kg2 {[%emt 0:00:06]} Qc7 {[%emt 0:00:16]} 44. Qf6 {[%emt 0:00:10]} Rc2+ {[%emt 0:00:20]} 45. Kh3 {[%emt 0:00:06]} 0-1

[Event "Czech Open Rapid G1 2024"]
[Site "Pardubice"]
[Date "2024.07.18"]
[Round "8.27"]
[White "Sherman, Raem"]
[Black "Dostal, Radim"]
[Result "1-0"]
[Annotator "RC"]
[ECO "C01"]
[WhiteElo "2358"]
[BlackElo "1961"]
[PlyCount "113"]
[EventDate "2024.07.16"]
[EventType "swiss"]
[EventCountry "CZE"]
[SourceTitle "playchess.com"]
[Source "ChessBase"]
[SourceQuality "1"]
[TimeControl "1200+10"]

1. e4 {[%emt 0:00:01]} e6 {[%emt 0:00:00]} 2. d4 {[%emt 0:00:06]} d5 {[%emt 0:00:01]} 3. Bd3 {[%emt 0:00:01]} dxe4 {[%emt 0:00:01]} 4. Bxe4 {[%emt 0:00:01]} Nf6 {[%emt 0:00:00]} 5. Bf3 {[%emt 0:00:01]} c5 {[%emt 0:00:01]} 6. Ne2 {[%emt 0:00:02]} Nc6 {[%emt 0:00:01]} 7. Be3 {[%emt 0:00:02]} e5 {[%emt 0:00:11]} 8. Bxc6+ {[%emt 0:00:04]} bxc6 {[%emt 0:00:00]} 9. dxe5 {[%emt 0:00:03]} Qxd1+ {[%emt 0:00:03]} 10. Kxd1 {[%emt 0:00:02]} Ng4 {[%emt 0:00:01]} 11. Nd2 {[%emt 0:00:11]} Nxe5 {[%emt 0:00:04]} 12. f3 {[%emt 0:00:13]} Ba6 {[%emt 0:01:02]} 13. Nc3 {[%emt 0:01:01]} O-O-O {[%emt 0:00:35]} 14. Ke1 {[%emt 0:00:33]} Be7 {[%emt 0:02:01]} 15. Kf2 {[%emt 0:00:23]} Rhe8 {[%emt 0:00:46]} 16. Rad1 {[%emt 0:00:24]} f5 {[%emt 0:03:12]} 17. h4 {[%emt 0:02:27]} Bd6 {[%emt 0:06:32]} 18. g3 {[%emt 0:02:57]} Nc4 {[%emt 0:02:08]} 19. Nxc4 {[%emt 0:00:41]} Bxc4 {[%emt 0:00:01]} 20. Bg5 {[%emt 0:00:07]} Rd7 {[%emt 0:00:44]} 21. Rhe1 {[%emt 0:03:39]} Be5 {[%emt 0:00:32]} 22. Kg2 {[%emt 0:01:04]} Rxd1 {[%emt 0:00:56]} 23. Nxd1 {[%emt 0:00:07]} Kd7 {[%emt 0:01:05]} 24. b3 {[%emt 0:00:09]} Bf7 {[%emt 0:00:15]} 25. c4 {[%emt 0:00:29]} Bd4 {[%emt 0:00:10]} 26. Be3 {[%emt 0:01:07]} Kd6 {[%emt 0:00:27]} 27. Kf2 {[%emt 0:00:11]} g6 {[%emt 0:00:15]} 28. Re2 {[%emt 0:00:06]} Bxe3+ {[%emt 0:00:43]} 29. Nxe3 {[%emt 0:00:05]} a5 {[%emt 0:00:08]} 30. Rd2+ {[%emt 0:00:31]} Kc7 {[%emt 0:00:01]} 31. Nd1 {[%emt 0:01:09]} a4 {[%emt 0:00:15]} 32. Nb2 {[%emt 0:00:26]} axb3 {[%emt 0:01:01]} 33. axb3 {[%emt 0:00:02]} Re7 {[%emt 0:00:26]} 34. Na4 {[%emt 0:00:07]} h6 {[%emt 0:00:57]} 35. f4 {[%emt 0:00:06]} Be8 {[%emt 0:00:31]} 36. Rd1 {[%emt 0:01:06]} Kb7 {[%emt 0:00:18]} 37. Nxc5+ {[%emt 0:00:16]} Kb6 {[%emt 0:00:03]} 38. b4 {[%emt 0:00:24]} Bf7 {[%emt 0:00:33]} 39. Nd7+ {[%emt 0:00:01]} Kc7 {[%emt 0:00:11]} 40. Ne5 {[%emt 0:00:01]} Be8 {[%emt 0:00:06]} 41. c5 {[%emt 0:00:10]} g5 {[%emt 0:00:05]} 42. Rd6 {[%emt 0:00:06]} gxf4 {[%emt 0:00:11]} 43. gxf4 {[%emt 0:00:01]} h5 {[%emt 0:00:23]} 44. Rf6 {[%emt 0:00:10]} Bd7 {[%emt 0:00:11]} 45. Rf7 {[%emt 0:00:32]} Rxf7 {[%emt 0:00:06]} 46. Nxf7 {[%emt 0:00:01]} Be6 {[%emt 0:00:07]} 47. Ne5 {[%emt 0:00:04]} Bd5 {[%emt 0:00:15]} 48. Ke3 {[%emt 0:00:01]} Kb7 {[%emt 0:00:05]} 49. Kd4 {[%emt 0:00:11]} Ka6 {[%emt 0:00:04]} 50. Kc3 {[%emt 0:00:41]} Kb5 {[%emt 0:00:02]} 51. Nd3 {[%emt 0:00:04]} Be4 {[%emt 0:00:10]} 52. Nb2 {[%emt 0:00:03]} Bd5 {[%emt 0:00:07]} 53. Nd1 {[%emt 0:00:03]} Bf3 {[%emt 0:00:13]} 54. Ne3 {[%emt 0:00:04]} Be4 {[%emt 0:00:01]} 55. Nc4 {[%emt 0:00:02]} Ka6 {[%emt 0:00:10]} 56. Nd6 {[%emt 0:00:02]} Bb1 {[%emt 0:00:07]} 57. Kd4 {[%emt 0:00:02]} 1-0

[Event "Czech Open Rapid G1 2024"]
[Site "Pardubice"]
[Date "2024.07.18"]
[Round "8.28"]
[White "Karpinets, Andrian"]
[Black "Alexikov, Alexander"]
[Result "0-1"]
[Annotator "RC"]
[ECO "B90"]
[WhiteElo "1759"]
[BlackElo "2183"]
[PlyCount "88"]
[EventDate "2024.07.16"]
[EventType "swiss"]
[EventCountry "CZE"]
[SourceTitle "playchess.com"]
[Source "ChessBase"]
[SourceQuality "1"]
[TimeControl "1200+10"]

1. e4 {[%emt 0:00:02]} c5 {[%emt 0:00:01]} 2. Nf3 {[%emt 0:00:04]} d6 {[%emt 0:00:00]} 3. d4 {[%emt 0:00:00]} Nf6 {[%emt 0:00:02]} 4. Nc3 {[%emt 0:00:03]} cxd4 {[%emt 0:00:01]} 5. Nxd4 {[%emt 0:00:02]} a6 {[%emt 0:00:00]} 6. h4 {[%emt 0:00:06]} b5 {[%emt 0:00:35]} 7. a4 {[%emt 0:00:03]} b4 {[%emt 0:00:14]} 8. Nd5 {[%emt 0:00:02]} e6 {[%emt 0:01:14]} 9. Nxf6+ {[%emt 0:01:01]} gxf6 {[%emt 0:00:10]} 10. Bc4 {[%emt 0:00:17]} h5 {[%emt 0:00:35]} 11. Be3 {[%emt 0:01:25]} Bb7 {[%emt 0:00:05]} 12. Qd3 {[%emt 0:01:09]} Nd7 {[%emt 0:00:07]} 13. Nf3 {[%emt 0:02:05]} Rg8 {[%emt 0:00:39]} 14. Kf1 {[%emt 0:01:27]} Rg4 {[%emt 0:00:32]} 15. Nd2 {[%emt 0:03:49]} Ne5 {[%emt 0:02:18]} 16. Qe2 {[%emt 0:00:07]} d5 {[%emt 0:00:29]} 17. f3 {[%emt 0:02:48]} Rg8 {[%emt 0:00:03]} 18. exd5 {[%emt 0:00:42]} exd5 {[%emt 0:06:49]} 19. Bb3 {[%emt 0:00:34]} a5 {[%emt 0:01:20]} 20. Qb5+ {[%emt 0:00:34]} Bc6 {[%emt 0:00:08]} 21. Qe2 {[%emt 0:00:21]} Be7 {[%emt 0:01:26]} 22. Re1 {[%emt 0:00:59]} Qd7 {[%emt 0:00:33]} 23. Bd4 {[%emt 0:01:51]} Kf8 {[%emt 0:03:15]} 24. Qe3 {[%emt 0:01:32]} Rg6 {[%emt 0:00:23]} 25. Bc5 {[%emt 0:01:01]} Bd6 {[%emt 0:00:27]} 26. Bxd6+ {[%emt 0:01:29]} Qxd6 {[%emt 0:00:02]} 27. Qf4 {[%emt 0:00:03]} Kg7 {[%emt 0:00:34]} 28. Rh3 {[%emt 0:00:16]} Re8 {[%emt 0:00:17]} 29. Qd4 {[%emt 0:00:52]} Qd7 {[%emt 0:00:13]} 30. Rh1 {[%emt 0:00:15]} Bxa4 {[%emt 0:00:05]} 31. Bxa4 {[%emt 0:00:08]} Qxa4 {[%emt 0:00:01]} 32. Nb3 {[%emt 0:00:08]} Qb5+ {[%emt 0:00:48]} 33. Kf2 {[%emt 0:00:01]} a4 {[%emt 0:00:01]} 34. Nc5 {[%emt 0:00:23]} Rc8 {[%emt 0:00:04]} 35. Rxe5 {[%emt 0:00:07]} fxe5 {[%emt 0:00:11]} 36. Qxe5+ {[%emt 0:00:01]} Kg8 {[%emt 0:00:02]} 37. Nd3 {[%emt 0:00:21]} Rxc2+ {[%emt 0:00:15]} 38. Ke3 {[%emt 0:00:02]} Qb6+ {[%emt 0:00:15]} 39. Kf4 {[%emt 0:00:08]} Rc4+ {[%emt 0:00:20]} 40. Kf5 {[%emt 0:00:05]} Qc6 {[%emt 0:00:10]} 41. Qb8+ {[%emt 0:00:23]} Kg7 {[%emt 0:00:07]} 42. Qe5+ {[%emt 0:00:02]} Kh7 {[%emt 0:00:04]} 43. Qe7 {[%emt 0:00:19]} Qc8+ {[%emt 0:00:07]} 44. Ke5 {[%emt 0:00:01]} Re6+ {[%emt 0:00:02]} 0-1

[Event "Czech Open Rapid G1 2024"]
[Site "Pardubice"]
[Date "2024.07.18"]
[Round "8.29"]
[White "Silar, Lubomir"]
[Black "Kavalir, Jan"]
[Result "1/2-1/2"]
[Annotator "RC"]
[ECO "B53"]
[WhiteElo "1973"]
[BlackElo "1992"]
[PlyCount "43"]
[EventDate "2024.07.16"]
[EventType "swiss"]
[EventCountry "CZE"]
[SourceTitle "playchess.com"]
[Source "ChessBase"]
[SourceQuality "1"]
[TimeControl "1200+10"]

1. e4 {[%emt 0:00:26]} c5 {[%emt 0:00:01]} 2. Nf3 {[%emt 0:00:05]} d6 {[%emt 0:00:01]} 3. d4 {[%emt 0:00:02]} cxd4 {[%emt 0:00:01]} 4. Qxd4 {[%emt 0:00:02]} e5 {[%emt 0:00:05]} 5. Qd1 {[%emt 0:00:11]} Qc7 {[%emt 0:00:32]} 6. Nc3 {[%emt 0:00:07]} Nf6 {[%emt 0:00:26]} 7. Bg5 {[%emt 0:00:15]} Nbd7 {[%emt 0:00:40]} 8. Be2 {[%emt 0:00:35]} a6 {[%emt 0:00:17]} 9. O-O {[%emt 0:01:10]} Be7 {[%emt 0:00:24]} 10. h3 {[%emt 0:00:38]} h6 {[%emt 0:00:28]} 11. Be3 {[%emt 0:01:32]} Nb6 {[%emt 0:03:29]} 12. Qd2 {[%emt 0:01:43]} Nc4 {[%emt 0:01:12]} 13. Bxc4 {[%emt 0:00:04]} Qxc4 {[%emt 0:00:01]} 14. Rfe1 {[%emt 0:00:24]} Nxe4 {[%emt 0:03:10]} 15. Nxe4 {[%emt 0:00:04]} Qxe4 {[%emt 0:00:01]} 16. Bg5 {[%emt 0:04:07]} Bxg5 {[%emt 0:02:46]} 17. Nxg5 {[%emt 0:00:02]} Qg6 {[%emt 0:00:33]} 18. Ne4 {[%emt 0:00:03]} O-O {[%emt 0:00:35]} 19. Qxd6 {[%emt 0:00:56]} Bf5 {[%emt 0:00:30]} 20. Qxg6 {[%emt 0:00:08]} Bxg6 {[%emt 0:00:04]} 21. Re2 {[%emt 0:04:30]} Rfd8 {[%emt 0:02:35]} 22. Rae1 {[%emt 0:00:56]} 1/2-1/2

[Event "Czech Open Rapid G1 2024"]
[Site "Pardubice"]
[Date "2024.07.18"]
[Round "8.30"]
[White "Ret, Adam Josef"]
[Black "Lihotsky, Lukas"]
[Result "0-1"]
[Annotator "RC"]
[ECO "D02"]
[WhiteElo "2085"]
[BlackElo "2129"]
[PlyCount "108"]
[EventDate "2024.07.16"]
[EventType "swiss"]
[EventCountry "CZE"]
[SourceTitle "playchess.com"]
[Source "ChessBase"]
[SourceQuality "1"]
[TimeControl "1200+10"]

1. Nf3 {[%emt 0:00:01]} d5 {[%emt 0:00:04]} 2. g3 {[%emt 0:00:04]} Nd7 {[%emt 0:00:05]} 3. d4 {[%emt 0:00:07]} Nb6 {[%emt 0:00:01]} 4. Bg2 {[%emt 0:00:43]} Bf5 {[%emt 0:00:02]} 5. Bf4 {[%emt 0:00:56]} e6 {[%emt 0:00:25]} 6. Nbd2 {[%emt 0:00:24]} Be7 {[%emt 0:02:22]} 7. O-O {[%emt 0:00:13]} Nf6 {[%emt 0:00:06]} 8. Rc1 {[%emt 0:00:18]} O-O {[%emt 0:00:20]} 9. c4 {[%emt 0:00:32]} c6 {[%emt 0:00:11]} 10. Qb3 {[%emt 0:01:38]} Qc8 {[%emt 0:01:13]} 11. a4 {[%emt 0:01:41]} Nbd7 {[%emt 0:00:49]} 12. Ne5 {[%emt 0:01:56]} a5 {[%emt 0:05:16]} 13. h3 {[%emt 0:02:38]} h6 {[%emt 0:01:59]} 14. Kh2 {[%emt 0:00:52]} Bb4 {[%emt 0:02:08]} 15. Nd3 {[%emt 0:00:31]} Bxd2 {[%emt 0:02:17]} 16. Bxd2 {[%emt 0:00:01]} Re8 {[%emt 0:00:18]} 17. Bf4 {[%emt 0:01:54]} Be4 {[%emt 0:00:18]} 18. Bxe4 {[%emt 0:01:51]} Nxe4 {[%emt 0:00:09]} 19. f3 {[%emt 0:00:28]} Nef6 {[%emt 0:00:06]} 20. g4 {[%emt 0:00:39]} dxc4 {[%emt 0:00:35]} 21. Qxc4 {[%emt 0:00:34]} Nd5 {[%emt 0:00:03]} 22. e4 {[%emt 0:01:31]} Nxf4 {[%emt 0:00:29]} 23. Nxf4 {[%emt 0:00:02]} e5 {[%emt 0:00:05]} 24. Ne2 {[%emt 0:00:55]} exd4 {[%emt 0:00:09]} 25. Qxd4 {[%emt 0:00:08]} Qc7+ {[%emt 0:00:06]} 26. Kg2 {[%emt 0:00:11]} Rad8 {[%emt 0:00:05]} 27. Rfd1 {[%emt 0:00:14]} Nb6 {[%emt 0:01:17]} 28. Qc3 {[%emt 0:00:52]} Nd5 {[%emt 0:00:29]} 29. Qb3 {[%emt 0:00:39]} Qe7 {[%emt 0:01:42]} 30. Rc2 {[%emt 0:00:23]} Ne3+ {[%emt 0:00:25]} 31. Qxe3 {[%emt 0:00:05]} Rxd1 {[%emt 0:00:01]} 32. Nd4 {[%emt 0:00:47]} Qb4 {[%emt 0:00:29]} 33. Nf5 {[%emt 0:00:18]} Qxa4 {[%emt 0:00:32]} 34. Qc3 {[%emt 0:00:41]} f6 {[%emt 0:00:39]} 35. Rd2 {[%emt 0:00:44]} Rxd2+ {[%emt 0:00:20]} 36. Qxd2 {[%emt 0:00:02]} Qb3 {[%emt 0:00:02]} 37. h4 {[%emt 0:00:19]} a4 {[%emt 0:00:13]} 38. Qd7 {[%emt 0:00:13]} Qf7 {[%emt 0:00:04]} 39. Qd4 {[%emt 0:00:05]} b5 {[%emt 0:00:20]} 40. Qc5 {[%emt 0:00:13]} Qd7 {[%emt 0:00:18]} 41. Kh3 {[%emt 0:00:11]} h5 {[%emt 0:00:12]} 42. gxh5 {[%emt 0:00:08]} Qe6 {[%emt 0:00:11]} 43. Kg4 {[%emt 0:00:22]} Qc4 {[%emt 0:00:12]} 44. Qa7 {[%emt 0:00:13]} Qf7 {[%emt 0:00:03]} 45. Qxf7+ {[%emt 0:00:01]} Kxf7 {[%emt 0:00:01]} 46. Nd6+ {[%emt 0:00:01]} Ke7 {[%emt 0:00:02]} 47. Nf5+ {[%emt 0:00:10]} Kf7 {[%emt 0:00:04]} 48. Nd6+ {[%emt 0:00:02]} Kf8 {[%emt 0:00:01]} 49. Kf5 {[%emt 0:00:09]} b4 {[%emt 0:00:42]} 50. Nc4 {[%emt 0:00:03]} Ra8 {[%emt 0:00:04]} 51. h6 {[%emt 0:00:25]} gxh6 {[%emt 0:00:15]} 52. Kxf6 {[%emt 0:00:02]} a3 {[%emt 0:00:06]} 53. bxa3 {[%emt 0:00:08]} bxa3 {[%emt 0:00:00]} 54. e5 {[%emt 0:00:02]} a2 {[%emt 0:00:03]} 0-1

[Event "Czech Open Rapid G1 2024"]
[Site "Pardubice"]
[Date "2024.07.18"]
[Round "8.31"]
[White "Kopriva, Martin"]
[Black "Pejrimovsky, Tadeas Rubel"]
[Result "1-0"]
[Annotator "RC"]
[ECO "B81"]
[WhiteElo "2159"]
[BlackElo "1847"]
[PlyCount "61"]
[EventDate "2024.07.16"]
[EventType "swiss"]
[EventCountry "CZE"]
[SourceTitle "playchess.com"]
[Source "ChessBase"]
[SourceQuality "1"]
[TimeControl "1200+10"]

1. e4 {[%emt 0:00:03]} c5 {[%emt 0:00:03]} 2. Nf3 {[%emt 0:00:01]} e6 {[%emt 0:00:02]} 3. d4 {[%emt 0:00:01]} cxd4 {[%emt 0:00:01]} 4. Nxd4 {[%emt 0:00:07]} Nf6 {[%emt 0:00:02]} 5. Nc3 {[%emt 0:00:01]} d6 {[%emt 0:00:01]} 6. g4 {[%emt 0:00:11]} h6 {[%emt 0:00:27]} 7. Rg1 {[%emt 0:00:02]} a6 {[%emt 0:00:06]} 8. h4 {[%emt 0:00:26]} d5 {[%emt 0:01:07]} 9. exd5 {[%emt 0:00:36]} Nxd5 {[%emt 0:00:04]} 10. Nxd5 {[%emt 0:00:16]} Qxd5 {[%emt 0:00:09]} 11. Bg2 {[%emt 0:01:09]} Qd8 {[%emt 0:01:38]} 12. Be3 {[%emt 0:00:35]} Be7 {[%emt 0:02:09]} 13. g5 {[%emt 0:01:59]} hxg5 {[%emt 0:00:35]} 14. hxg5 {[%emt 0:00:05]} e5 {[%emt 0:01:20]} 15. Nb3 {[%emt 0:01:04]} Qc7 {[%emt 0:00:46]} 16. g6 {[%emt 0:01:37]} fxg6 {[%emt 0:01:44]} 17. Be4 {[%emt 0:01:09]} Bf5 {[%emt 0:00:02]} 18. Qf3 {[%emt 0:00:25]} Rh3 {[%emt 0:06:56]} 19. Qg2 {[%emt 0:00:30]} Rxe3+ {[%emt 0:00:09]} 20. fxe3 {[%emt 0:00:08]} Bh4+ {[%emt 0:00:01]} 21. Ke2 {[%emt 0:00:55]} Qc4+ {[%emt 0:00:34]} 22. Bd3 {[%emt 0:00:11]} Bxd3+ {[%emt 0:01:00]} 23. cxd3 {[%emt 0:00:01]} Qc2+ {[%emt 0:00:02]} 24. Nd2 {[%emt 0:00:10]} Nc6 {[%emt 0:01:31]} 25. Qxg6+ {[%emt 0:00:20]} Kd7 {[%emt 0:00:43]} 26. Qg4+ {[%emt 0:00:12]} Kc7 {[%emt 0:00:48]} 27. Qxh4 {[%emt 0:00:24]} Nd4+ {[%emt 0:00:02]} 28. exd4 {[%emt 0:00:22]} exd4 {[%emt 0:00:01]} 29. Rac1 {[%emt 0:00:22]} Re8+ {[%emt 0:00:01]} 30. Kf2 {[%emt 0:00:46]} Rf8+ {[%emt 0:00:01]} 31. Kg3 {[%emt 0:00:15]} 1-0